bitfinex-derivatives/quotes_ETHF0:USTF0_20250405
["timestamp","ask_amount","ask_price","bid_price","bid_amount"]
[1743844445699,3.97795,1818.5,1818.4,1.4599]
[1743844452002,3.97795,1818.5,1817.8,6.69644]
[1743844452003,1.92557,1818.4,1817.8,6.69644]
[1743844452203,3.2078,1818.0,1817.9,4.50125179]
[1743844452501,3.2078,1818.0,1817.9,43.76934785]
[1743844454396,3.2078,1818.0,1817.9,43.7688372]
[1743844454803,3.2078,1818.0,1817.9,43.02818]
[1743844455201,3.2078,1818.0,1817.9,46.26881136]
[1743844455406,3.526,1818.2,1818.1,0.77032]
[1743844455600,7.50602,1818.4,1818.3,0.77024]
[1743844457308,7.50502,1818.4,1818.3,0.77024]
[1743844459510,4.29722,1818.4,1818.3,0.77024]
[1743844459710,7.50502,1818.4,1818.3,0.77024]
[1743844461812,7.50502,1818.4,1818.2,2.22325]
[1743844462912,7.50502,1818.4,1818.3,0.77024]
[1743844463513,7.50502,1818.4,1818.2,2.22325]
[1743844463713,7.50502,1818.4,1818.3,0.77024]
[1743844465108,7.50502,1818.4,1818.3,2.16624]
[1743844466609,6.7348,1818.4,1818.3,2.16624]
[1743844467015,7.505,1818.4,1818.3,2.16624]
[1743844467516,3.978,1818.4,1818.3,2.16624]
[1743844468015,3.2078,1818.4,1818.3,2.16624]
[1743844468415,3.978,1818.4,1818.3,2.16624]
[1743844468715,3.2078,1818.4,1818.3,2.16624]
[1743844472024,3.2078,1818.4,1818.3,2.90747962]
[1743844475921,3.9736,1818.7,1818.6,0.77011]
[1743844476511,5.4587,1818.7,1818.6,0.77011]
[1743844476718,5.4587,1818.7,1818.6,2.28241]
[1743844479625,6.22877,1818.7,1818.6,2.28241]
[1743844479925,6.99097,1818.7,1818.6,2.28241]
[1743844480125,6.2209,1818.7,1818.6,2.28241]
[1743844480724,3.2078,1818.7,1818.6,2.28241]
[1743844483423,0.00824584,1818.8,1818.7,0.77007]
[1743844483619,23.77886115,1819.0,1818.9,0.76998]
[1743844483819,24.54880115,1819.0,1818.9,0.74080379]
[1743844484022,0.76998,1818.9,1818.8,1.4772]
[1743844484321,6.0594,1818.9,1818.5,4.28012]
[1743844484522,3.97787,1818.7,1818.5,0.77014]
[1743844484723,1.495,1818.6,1818.5,0.77014]
[1743844484926,2.8973,1818.6,1818.5,2.25704]
[1743844486827,2.165,1818.6,1818.5,2.25704]
[1743844487030,3.9307,1818.7,1818.6,0.77011]
[1743844487327,3.2078,1818.7,1818.6,2.25701]
[1743844490031,1.48454584,1818.8,1818.7,0.77007]
[1743844490231,4.69234584,1818.8,1818.7,2.23727]
[1743844492635,1.48454584,1818.8,1818.7,2.23727]
[1743844492934,4.69234584,1818.8,1818.7,2.23727]
[1743844495637,1.48454584,1818.8,1818.7,2.23727]
[1743844495837,4.69234584,1818.8,1818.7,2.23727]
[1743844496440,3.21604584,1818.8,1818.7,2.23727]
[1743844498234,0.00824584,1818.8,1818.7,2.23727]
[1743844498438,5.50558584,1818.8,1818.6,0.7701]
[1743844498639,1.5195,1818.7,1818.6,0.7701]
[1743844498840,2.216,1818.7,1818.6,0.7701]
[1743844499138,2.216,1818.7,1818.6,1.51160768]
[1743844499339,2.216,1818.7,1818.6,0.7701]
[1743844500140,2.216,1818.7,1818.6,1.51172996]
[1743844500543,2.216,1818.7,1818.6,0.7701]
[1743844501041,2.216,1818.7,1818.6,1.51163038]
[1743844501244,2.216,1818.7,1818.6,2.23207861]
[1743844502555,2.216,1818.7,1818.6,0.7701]
[1743844503757,2.216,1818.7,1818.6,1.51187013]
[1743844504756,2.98607,1818.7,1818.5,2.89323]
[1743844504956,1.3895,1818.6,1818.5,2.89323]
[1743844505150,1.3895,1818.6,1818.5,3.6350619]
[1743844506259,1.3895,1818.6,1818.5,3.63510625]
[1743844506459,1.3895,1818.6,1818.5,3.63513164]
[1743844507265,0.6965,1818.7,1818.6,0.77011]
[1743844507559,0.6965,1818.7,1818.6,3.02621164]
[1743844507758,2.153,1818.7,1818.6,3.02621164]
[1743844507955,2.153,1818.7,1818.6,2.28431]
[1743844508160,5.652,1818.7,1818.4,0.00824584]
[1743844508361,2.93064,1818.6,1818.4,0.77842584]
[1743844508563,1.4565,1818.5,1818.4,2.29262584]
[1743844508765,2.1815,1818.5,1818.4,3.03466917]
[1743844509960,2.1815,1818.5,1818.4,3.03479023]
[1743844510162,2.95165,1818.5,1818.4,2.26461023]
[1743844510465,2.95165,1818.5,1818.4,0.00824584]
[1743844510670,0.77032,1818.1,1818.0,1.4619]
[1743844510869,3.97812,1818.1,1817.8,2.19601]
[1743844511160,3.97821,1817.9,1817.7,0.77048]
[1743844511361,3.2078,1817.9,1817.7,1.4619]
[1743844511563,5.42311,1817.9,1817.7,2.23237]
[1743844511763,1.4036,1817.8,1817.7,2.23237]
[1743844511965,3.2078,1818.1,1818.0,0.77036]
[1743844512166,3.97804,1818.3,1818.0,0.77033]
[1743844512369,3.97804,1818.3,1818.1,3.63071]
[1743844512561,3.2078,1818.3,1818.2,2.22098]
[1743844516966,3.2078,1818.3,1818.2,2.95750271]
[1743844517269,3.2078,1818.3,1818.2,2.22098]
[1743844517673,3.2078,1818.3,1818.2,2.9575881]
[1743844518173,3.2078,1818.3,1818.2,2.22098]
[1743844518370,3.2078,1818.6,1818.5,0.77013]
[1743844519169,3.2078,1818.6,1818.5,2.21463]
[1743844519968,3.2078,1818.6,1818.5,1.4445]
[1743844520373,3.2078,1818.6,1818.5,2.9133]
[1743844520374,3.97791,1818.6,1818.5,2.9133]
[1743844520572,3.2078,1818.6,1818.5,2.9133]
[1743844521278,3.2078,1818.6,1818.5,3.68345]
[1743844521976,3.2078,1818.6,1818.5,2.9133]
[1743844522172,3.2078,1818.6,1818.5,3.68345]
[1743844522978,3.97791,1818.6,1818.5,2.9133]
[1743844523281,3.2078,1818.6,1818.5,3.68345]
[1743844524478,3.97791,1818.6,1818.5,3.68345]
[1743844524778,3.2078,1818.6,1818.5,3.68345]
[1743844524980,3.97791,1818.6,1818.5,2.2084]
[1743844525178,5.40811,1818.6,1818.5,1.4688]
[1743844525679,3.2078,1818.6,1818.5,2.23895]
[1743844527270,3.2078,1818.6,1818.5,2.97578695]
[1743844527567,3.2078,1818.6,1818.5,2.23895]
[1743844528074,3.2078,1818.6,1818.5,2.97580518]
[1743844529882,3.2078,1818.6,1818.5,2.97611027]
[1743844531682,3.2078,1818.6,1818.5,2.97607728]
[1743844532887,3.2078,1818.6,1818.5,2.20592728]
[1743844533088,3.2078,1818.6,1818.5,1.4688]
[1743844533286,4.6235,1818.6,1818.5,1.4688]
[1743844533985,4.6235,1818.6,1818.5,2.23895]
[1743844534181,3.2078,1818.6,1818.5,2.23895]
[1743844534386,3.2078,1818.6,1818.5,2.9761773]
[1743844534588,0.00824584,1818.8,1818.7,0.77007]
[1743844535185,0.00824584,1818.8,1818.7,2.24107]
[1743844537991,1.41474584,1818.8,1818.7,2.24107]
[1743844538191,1.41474584,1818.8,1818.7,1.471]
[1743844538391,2.12234584,1818.8,1818.7,2.24107]
[1743844541693,2.89237584,1818.8,1818.7,1.471]
[1743844541893,2.89237584,1818.8,1818.6,1.48932584]
[1743844542193,2.1539,1818.7,1818.6,1.48932584]
[1743844542388,2.1539,1818.7,1818.6,2.22665546]
[1743844542592,2.1539,1818.7,1818.6,3.70365502]
[1743844542995,1.3913,1818.7,1818.6,3.70365502]
[1743844546391,1.3913,1818.7,1818.6,3.70418597]
[1743844547895,1.3913,1818.7,1818.6,3.70431507]
[1743844548389,2.16137,1818.7,1818.6,2.99334507]
[1743844548586,1.3913,1818.7,1818.6,2.99334507]
[1743844549893,2.16137,1818.7,1818.6,2.22323507]
[1743844550400,1.3913,1818.7,1818.6,2.99334507]
[1743844551495,1.3913,1818.7,1818.6,2.99368523]
[1743844551695,2.16137,1818.7,1818.6,2.99368523]
[1743844553402,2.16137,1818.7,1818.6,2.99363266]
[1743844555701,1.3913,1818.7,1818.6,2.99363266]
[1743844557002,2.16137,1818.7,1818.6,2.99363266]
[1743844557701,1.3913,1818.7,1818.6,2.99363266]
[1743844558806,1.3913,1818.7,1818.6,2.99370875]
[1743844561306,2.16137,1818.7,1818.6,2.99370875]
[1743844561506,1.3913,1818.7,1818.6,2.99370875]
[1743844561705,2.16137,1818.7,1818.6,2.99370875]
[1743844562199,5.65437,1818.7,1818.6,2.22359875]
[1743844563206,5.65437,1818.7,1818.6,0.00824584]
[1743844563405,8.15437,1818.7,1818.6,0.00824584]
[1743844563904,0.77028,1818.2,1818.1,0.7669]
[1743844564203,3.97808,1818.2,1818.1,2.26605644]
[1743844564594,0.77035,1818.1,1817.9,0.77041]
[1743844564798,3.2078,1818.0,1817.9,2.29791]
[1743844565000,3.2078,1818.0,1817.9,3.03611489]
[1743844565202,3.2078,1818.0,1817.9,2.29791]
[1743844566607,3.2078,1818.0,1817.9,1.5275]
[1743844566798,3.97816,1818.0,1817.9,1.5275]
[1743844569605,4.71126,1818.0,1817.9,1.5275]
[1743844570306,6.94686,1818.0,1817.9,1.5275]
[1743844573407,0.77041,1817.9,1817.8,0.76104584]
[1743844573606,2.29431,1817.9,1817.8,1.45844584]
[1743844575209,2.29431,1817.9,1817.8,0.00824584]
[1743844576307,0.77053,1817.6,1817.5,1.4216]
[1743844576501,3.97833,1817.6,1817.5,2.8957]
[1743844576701,3.97833,1817.6,1817.1,0.77072]
[1743844576702,3.2078,1817.6,1817.1,0.77072]
[1743844576904,3.2078,1817.4,1817.2,44.43469]
[1743844577104,6.7168,1817.4,1817.3,1.4741]
[1743844577307,7.48742,1817.4,1817.3,1.4741]
[1743844581914,6.7168,1817.4,1817.3,1.4741]
[1743844582111,7.48742,1817.4,1817.3,1.4741]
[1743844583312,4.27962,1817.4,1817.3,1.4741]
[1743844583613,7.48742,1817.4,1817.3,1.4741]
[1743844586114,3.2078,1817.4,1817.3,2.24476]
[1743844586412,6.7118,1817.4,1817.3,2.24476]
[1743844589309,3.504,1817.4,1817.3,2.24476]
[1743844590116,4.27462,1817.4,1817.3,2.24476]
[1743844590618,4.27462,1817.4,1817.3,1.4741]
[1743844592208,3.504,1817.4,1817.3,2.24476]
[1743844592717,4.27462,1817.4,1817.3,2.24476]
[1743844593018,3.504,1817.4,1817.3,2.24476]
[1743844593206,4.27462,1817.4,1817.3,2.24476]
[1743844594415,4.27462,1817.4,1817.3,1.4741]
[1743844595716,4.27462,1817.4,1817.3,2.24476]
[1743844595918,4.27462,1817.4,1817.3,1.4741]
[1743844596117,4.27462,1817.4,1817.3,2.24476]
[1743844598627,4.27462,1817.4,1817.3,1.4741]
[1743844599236,4.27462,1817.4,1817.3,2.24476]
[1743844600722,4.27462,1817.4,1817.3,1.4741]
[1743844602831,4.27462,1817.4,1817.3,2.24476]
[1743844604230,7.48242,1817.4,1817.3,2.24476]
[1743844604433,7.48242,1817.4,1817.3,1.4741]
[1743844604832,0.77066,1817.3,1817.2,0.70104584]
[1743844605132,0.77066,1817.3,1817.2,1.52804584]
[1743844605330,2.30426,1817.3,1817.2,1.52804584]
[1743844608830,5.51206,1817.3,1817.2,1.52804584]
[1743844609939,3.2078,1817.3,1817.2,2.29874584]
[1743844610138,3.2078,1817.3,1817.2,3.03830326]
[1743844610738,3.2078,1817.3,1817.2,3.03819628]
[1743844614341,3.2078,1817.3,1817.2,3.03804254]
[1743844614535,4.27462,1817.4,1817.2,3.03804254]
[1743844614740,7.48242,1817.4,1817.3,2.1304967]
[1743844615339,4.27462,1817.4,1817.3,2.1304967]
[1743844615638,7.48242,1817.4,1817.3,2.1304967]
[1743844616231,7.48242,1817.4,1817.3,2.9011567]
[1743844616634,7.48242,1817.4,1817.3,3.6502567]
[1743844618538,6.7118,1817.4,1817.3,3.6502567]
[1743844618840,6.7118,1817.4,1817.3,4.3736567]
[1743844619246,3.2078,1817.4,1817.3,4.3736567]
[1743844619439,0.00824584,1817.5,1817.4,0.77062]
[1743844619639,0.00824584,1817.5,1817.4,2.9771167]
[1743844619840,3.2078,1817.6,1817.5,0.77058]
[1743844620142,3.2078,1817.6,1817.5,2.97647836]
[1743844620542,6.6988,1817.9,1817.8,0.77045]
[1743844620841,0.77037,1818.0,1817.8,1.50877646]
[1743844621042,0.00824584,1818.0,1817.9,2.96101]
[1743844622344,0.00824584,1818.0,1817.9,2.1906]
[1743844622541,0.77860584,1818.0,1817.9,2.1906]
[1743844622741,2.20880584,1818.0,1817.9,2.1906]
[1743844622941,1.43844584,1818.0,1817.9,2.1906]
[1743844623142,2.20880584,1818.0,1817.9,2.1906]
[1743844623443,2.20880584,1818.0,1817.9,2.9425]
[1743844623643,1.43844584,1818.0,1817.9,2.9425]
[1743844623949,2.20880584,1818.0,1817.9,2.9425]
[1743844624347,1.43844584,1818.0,1817.9,3.71291]
[1743844624950,0.00824584,1818.0,1817.9,3.71291]
[1743844625248,3.2078,1818.3,1817.9,5.4425]
[1743844625438,0.77018,1818.5,1818.2,0.77024]
[1743844625747,0.77018,1818.5,1818.3,1.497]
[1743844625942,2.28878,1818.5,1818.4,1.4257]
[1743844626150,3.2078,1818.6,1818.4,1.4257]
[1743844626351,0.77007,1818.7,1818.5,0.77014]
[1743844626549,0.77831584,1818.7,1818.6,1.4257]
[1743844626750,2.29691584,1818.7,1818.6,1.4257]
[1743844627852,0.00824584,1818.7,1818.6,2.19581]
[1743844629950,0.77831584,1818.7,1818.6,1.4257]
[1743844630148,1.42984584,1818.7,1818.4,2.26946]
[1743844630452,0.7702,1818.4,1818.3,1.50524584]
[1743844630640,3.978,1818.4,1818.3,0.00824584]
[1743844631244,5.3923,1818.4,1818.3,0.00824584]
[1743844631445,4.6221,1818.4,1818.3,1.46404584]
[1743844631846,3.2078,1818.4,1818.3,2.23428584]
[1743844635454,4.28516,1818.5,1818.3,2.23428584]
[1743844635656,4.28516,1818.5,1818.4,1.4577]
[1743844636757,5.74726,1818.5,1818.4,1.4577]
[1743844637456,4.9771,1818.5,1818.4,2.2279]
[1743844638449,4.67594,1818.6,1818.4,2.2279]
[1743844638450,3.2078,1818.6,1818.5,0.77015]
[1743844638649,3.2078,1818.6,1818.5,3.72165]
[1743844642949,3.97791,1818.6,1818.5,3.72165]
[1743844643266,5.39861,1818.6,1818.5,1.5249]
[1743844645458,5.39861,1818.6,1818.5,2.29505]
[1743844646253,0.7702,1818.4,1818.3,0.00824584]
[1743844646453,0.77032,1818.1,1818.0,1.3812]
[1743844646762,3.97812,1818.1,1818.0,42.1812]
[1743844647648,5.43152,1818.1,1818.0,42.1812]
[1743844647855,4.6612,1818.1,1818.0,42.95156]
[1743844648661,4.6612,1818.1,1818.0,42.1812]
[1743844648958,3.2078,1818.1,1818.0,42.95156]
[1743844653058,3.97812,1818.1,1818.0,42.1812]
[1743844654161,3.97812,1818.1,1818.0,42.95156]
[1743844654461,3.2078,1818.1,1818.0,42.95156]
[1743844656962,3.97812,1818.1,1818.0,42.95156]
[1743844657967,3.2078,1818.1,1818.0,42.95156]
[1743844658758,3.97812,1818.1,1818.0,42.1812]
[1743844659254,3.97812,1818.1,1818.0,1.3812]
[1743844659458,4.7268,1818.1,1818.0,2.15156]
[1743844659765,5.49712,1818.1,1818.0,1.3812]
[1743844660765,5.49712,1818.1,1818.0,2.15156]
[1743844662068,5.49712,1818.1,1818.0,1.3812]
[1743844664670,5.49712,1818.1,1818.0,2.15156]
[1743844666369,4.7268,1818.1,1818.0,2.15156]
[1743844666570,3.2078,1818.1,1818.0,2.15156]
[1743844667070,3.2078,1818.1,1818.0,42.95156]
[1743844667574,3.97812,1818.1,1818.0,42.95156]
[1743844667964,3.97812,1818.1,1818.0,42.1812]
[1743844668370,3.97812,1818.1,1818.0,42.95156]
[1743844668770,3.97812,1818.1,1818.0,42.1812]
[1743844668971,3.97812,1818.1,1818.0,42.95156]
[1743844669165,3.97812,1818.1,1818.0,42.1812]
[1743844669966,3.97812,1818.1,1818.0,42.95156]
[1743844670976,3.2078,1818.1,1818.0,42.95156]
[1743844672478,3.97812,1818.1,1818.0,42.95156]
[1743844672676,3.2078,1818.1,1818.0,42.95156]
[1743844672971,3.97812,1818.1,1818.0,42.95156]
[1743844673171,3.97812,1818.1,1818.0,1.3812]
[1743844675379,6.93132,1818.1,1818.0,1.3812]
[1743844676975,3.97812,1818.1,1818.0,1.3812]
[1743844677174,3.2078,1818.6,1818.5,0.77015]
[1743844677374,3.2078,1818.9,1818.6,0.77011]
[1743844677582,0.76993,1819.1,1818.6,6.73104296]
[1743844677583,2.20303,1819.1,1818.6,6.73104296]
[1743844677775,2.20303,1819.1,1818.6,6.73103418]
[1743844677980,2.20303,1819.1,1818.6,6.73103483]
[1743844678180,2.20303,1819.1,1818.6,6.20744581]
[1743844679180,1.4331,1819.1,1818.6,6.20744581]
[1743844680275,8.95549,1819.2,1818.6,6.20744581]
[1743844680473,0.7699,1819.1,1818.6,6.20744581]
[1743844680777,0.7699,1819.1,1818.6,6.22684405]
[1743844681584,2.2605,1819.1,1818.6,5.46841]
[1743844683587,1.4906,1819.1,1818.6,5.46841]
[1743844683886,4.6626,1819.2,1818.6,8.72545989]
[1743844684787,4.6626,1819.2,1818.6,6.22545989]
[1743844684986,5.43246,1819.2,1818.6,6.22545989]
[1743844685183,3.2078,1819.2,1818.6,8.72545989]
[1743844685485,3.2078,1819.2,1818.6,8.72474079]
[1743844686685,3.2078,1819.2,1818.6,6.22474079]
[1743844687281,5.84e-06,1818.7,1818.6,8.72418042]
[1743844688079,5.84e-06,1818.7,1818.6,8.72407141]
[1743844689086,5.84e-06,1818.7,1818.6,8.7240476]
[1743844689583,5.84e-06,1818.7,1818.6,5.46841]
[1743844691485,5.84e-06,1818.7,1818.6,6.22382142]
[1743844692683,5.84e-06,1818.7,1818.6,5.46841]
[1743844693883,5.84e-06,1818.7,1818.6,2.26061]
[1743844694085,0.70980584,1818.7,1818.6,2.26061]
[1743844694388,2.17000584,1818.7,1818.6,2.26061]
[1743844695088,5.44009584,1818.7,1818.4,3.2078]
[1743844695388,1.4643,1818.6,1818.4,3.2078]
[1743844695589,1.4643,1818.6,1818.5,0.77015]
[1743844696283,1.4643,1818.6,1818.5,2.24185]
[1743844700491,1.4643,1818.6,1818.4,3.97797]
[1743844700788,0.737,1818.5,1818.4,3.97797]
[1743844702285,2.2051,1818.5,1818.4,3.97797]
[1743844705295,2.2051,1818.5,1818.4,4.73695811]
[1743844706997,2.2051,1818.5,1818.4,4.73757721]
[1743844707296,2.2051,1818.5,1818.4,1.52977721]
[1743844708596,2.2051,1818.5,1818.4,2.99277721]
[1743844711797,2.2051,1818.5,1818.4,2.99249163]
[1743844712095,2.2051,1818.5,1818.4,2.99252923]
[1743844714297,2.2051,1818.5,1818.4,2.99251281]
[1743844716791,6.18305,1818.5,1818.4,0.75934281]
[1743844716995,0.7702,1818.4,1818.2,3.65467]
[1743844717294,3.2078,1818.3,1818.2,0.77027]
[1743844717493,2.98082,1818.4,1818.2,0.77027]
[1743844717693,1.4493,1818.3,1818.2,0.77027]
[1743844718701,1.4493,1818.3,1818.2,1.53023638]
[1743844719695,1.4493,1818.3,1818.2,1.53033331]
[1743844719899,1.4493,1818.3,1818.2,0.77027]
[1743844720105,1.4493,1818.3,1818.2,1.53032417]
[1743844720398,2.21954,1818.3,1818.2,0.76005417]
[1743844720699,1.4493,1818.3,1818.2,1.53033417]
[1743844720894,1.4493,1818.3,1818.2,3.06013417]
[1743844721089,2.21954,1818.3,1818.2,0.76005417]
[1743844721394,7.1571,1818.3,1818.0,0.77036]
[1743844721700,0.77032,1818.1,1818.0,1.5298]
[1743844722392,1.47,1818.1,1818.0,2.30016]
[1743844722798,1.47,1818.1,1818.0,3.03006]
[1743844723602,0.77032,1818.1,1818.0,3.03006]
[1743844724302,0.77032,1818.1,1818.0,2.2597]
[1743844724696,3.527,1818.2,1818.1,0.77032]
[1743844724896,3.2078,1818.3,1818.2,0.77028]
[1743844725103,5.7613,1818.4,1818.3,0.77024]
[1743844725603,7.51297,1818.5,1818.3,1.48154]
[1743844725791,9.72557,1818.5,1818.4,1.393]
[1743844726606,0.77022,1818.4,1818.2,0.77025]
[1743844726802,2.26202,1818.4,1818.2,2.90345]
[1743844727003,2.26202,1818.4,1818.3,1.393]
[1743844727201,2.26202,1818.4,1818.1,1.46489]
[1743844727202,1.4918,1818.4,1818.1,1.46489]
[1743844727395,0.77025,1818.3,1818.2,0.77028]
[1743844727608,2.26202,1818.4,1818.2,2.16328]
[1743844731308,0.77024,1818.3,1818.2,2.16328]
[1743844732508,0.77024,1818.3,1818.2,1.393]
[1743844732708,1.50644,1818.3,1818.2,2.16328]
[1743844732908,0.7362,1818.3,1818.2,2.16328]
[1743844733112,2.26202,1818.4,1818.2,2.16328]
[1743844733408,2.26202,1818.4,1818.3,1.4841]
[1743844733608,8.23377,1818.5,1818.3,2.25434]
[1743844733999,8.23377,1818.5,1818.4,1.4841]
[1743844735411,9.62467,1818.5,1818.4,1.4841]
[1743844743314,0.7702,1818.4,1818.3,0.7426]
[1743844743614,0.77024,1818.3,1818.2,2.19924]
[1743844743817,2.26173,1818.4,1818.2,2.91204]
[1743844744011,2.26173,1818.4,1818.3,1.429]
[1743844744414,2.26173,1818.4,1818.3,2.19924]
[1743844744720,7.51299,1818.5,1818.4,0.7702]
[1743844744918,7.51299,1818.5,1818.4,2.897]
[1743844745107,6.7428,1818.5,1818.4,2.897]
[1743844745306,3.2078,1818.5,1818.4,2.897]
[1743844745512,4.29213,1818.6,1818.4,2.1268]
[1743844745712,4.29213,1818.6,1818.5,2.1461]
[1743844746520,4.29213,1818.6,1818.5,2.91625]
[1743844746721,0.77011,1818.6,1818.5,2.1461]
[1743844749623,2.20051,1818.6,1818.5,1.429]
[1743844749922,0.77015,1818.5,1818.4,0.6978]
[1743844750129,2.20055,1818.5,1818.4,2.207]
[1743844750627,2.20055,1818.5,1818.4,1.5092]
[1743844751931,5.40835,1818.5,1818.4,1.5092]
[1743844756327,0.7702,1818.4,1818.3,0.7322]
[1743844756526,2.2837,1818.4,1818.3,0.7322]
[1743844756726,3.0308,1818.4,1818.3,0.7322]
[1743844756926,3.0308,1818.4,1818.3,1.422]
[1743844757134,0.77031,1818.2,1818.0,1.47934]
[1743844757332,0.77031,1818.2,1818.1,0.76141603]
[1743844757734,2.28381,1818.2,1818.1,2.18341603]
[1743844758234,0.77032,1818.1,1818.0,1.4725]
[1743844758534,5.80282,1818.1,1818.0,3.65582298]
[1743844758734,6.54992,1818.1,1818.0,2.89232298]
[1743844759832,5.80282,1818.1,1818.0,2.89232298]
[1743844760336,5.80282,1818.1,1818.0,2.131]
[1743844762035,0.77036,1818.0,1817.9,40.80824584]
[1743844762239,2.15566,1818.0,1817.9,0.00824584]
[1743844766342,2.15566,1818.0,1817.9,1.40664584]
[1743844768033,0.77036,1818.0,1817.9,1.40664584]
[1743844768436,4.28536,1818.0,1817.9,1.40664584]
[1743844769438,3.515,1818.0,1817.9,2.17705584]
[1743844769636,3.515,1818.0,1817.9,1.40664584]
[1743844770137,3.515,1818.0,1817.9,2.17705584]
[1743844770640,3.515,1818.0,1817.9,1.40664584]
[1743844770836,3.515,1818.0,1817.9,2.17705584]
[1743844775331,3.515,1818.0,1817.9,2.93712336]
[1743844775529,3.2078,1818.1,1818.0,0.77036]
[1743844775741,6.81373,1818.4,1818.2,0.77026]
[1743844775944,3.97803,1818.4,1818.3,2.2133]
[1743844776139,6.7208,1818.4,1818.3,2.98354]
[1743844778241,3.513,1818.4,1818.3,2.98354]
[1743844780837,3.513,1818.4,1818.3,3.74373566]
[1743844782445,5.37243,1818.6,1818.4,0.77017]
[1743844782642,3.514,1818.5,1818.4,1.48557]
[1743844784047,4.6023,1818.6,1818.5,0.77015]
[1743844784346,7.48991,1818.6,1818.4,1.48556]
[1743844785247,7.48991,1818.6,1818.5,0.77015]
[1743844786548,0.77022,1818.4,1818.2,0.77025]
[1743844786750,0.77022,1818.4,1818.2,0.77024]
[1743844787147,2.20112,1818.4,1818.3,0.77024]
[1743844787841,1.4309,1818.4,1818.3,0.77024]
[1743844788248,1.4744,1818.5,1818.4,0.7702]
[1743844789449,2.24455,1818.5,1818.3,0.77021]
[1743844790149,0.7702,1818.4,1818.3,0.77021]
[1743844790350,0.7702,1818.4,1818.2,0.77025]
[1743844791046,2.2732,1818.4,1818.2,0.77025]
[1743844792052,2.2732,1818.4,1818.3,0.77024]
[1743844792253,2.2732,1818.4,1818.2,0.77025]
[1743844792551,0.77024,1818.3,1818.2,0.77025]
[1743844793052,2.27322,1818.4,1818.2,0.77025]
[1743844794352,2.27322,1818.4,1818.3,0.77024]
[1743844794551,2.27322,1818.4,1818.2,0.77024]
[1743844795352,2.27322,1818.4,1818.3,1.4047]
[1743844799353,0.77024,1818.3,1818.2,0.77024]
[1743844799656,2.26844,1818.3,1818.2,1.53093532]
[1743844800258,2.26844,1818.3,1818.2,0.76069532]
[1743844800453,2.26844,1818.3,1818.2,0.77028]
[1743844800756,2.26844,1818.3,1818.2,1.53118171]
[1743844801257,2.26844,1818.3,1818.2,2.92148171]
[1743844803347,2.26844,1818.3,1818.2,2.15120171]
[1743844803558,0.77032,1818.1,1818.0,0.7581]
[1743844803756,0.77032,1818.1,1818.0,2.15207955]
[1743844804456,0.77032,1818.1,1818.0,1.3903]
[1743844805654,0.77032,1818.1,1818.0,2.92247116]
[1743844805960,6.84281,1818.2,1818.0,2.92247116]
[1743844806155,6.84281,1818.2,1818.1,1.4849]
[1743844807459,6.84281,1818.2,1818.1,2.242]
[1743844808967,3.63501,1818.2,1818.1,2.242]
[1743844809165,6.84281,1818.2,1818.1,2.242]
[1743844811161,6.84281,1818.2,1818.1,1.4849]
[1743844811464,0.77036,1818.0,1817.9,0.00824584]
[1743844811667,6.7118,1818.0,1817.4,3.2078]
[1743844811856,3.97825,1817.8,1817.6,2.15453]
[1743844812056,0.77049,1817.7,1817.6,1.384]
[1743844812258,0.77049,1817.7,1817.6,2.1456817]
[1743844812455,0.77049,1817.7,1817.6,1.384]
[1743844815258,0.77053,1817.6,1817.5,40.80824584]
[1743844815462,4.70113,1817.6,1817.5,40.80824584]
[1743844815965,6.89343,1817.6,1817.5,40.80824584]
[1743844816867,6.89343,1817.6,1817.5,42.23204584]
[1743844821970,6.17063,1817.6,1817.5,42.23204584]
[1743844822269,4.67193,1817.6,1817.5,42.23204584]
[1743844822461,3.97833,1817.6,1817.5,42.23204584]
[1743844823968,0.77053,1817.6,1817.5,42.23204584]
[1743844824370,7.49155584,1817.7,1817.5,42.23204584]
[1743844824669,7.49155584,1817.7,1817.6,2.1995]
[1743844824965,3.2078,1818.2,1817.6,5.4223]
[1743844825172,0.77022,1818.4,1818.1,0.7703]
[1743844825473,3.2078,1818.5,1818.2,3.69258]
[1743844825768,6.7338,1818.5,1818.2,3.69258]
[1743844826157,0.00824584,1818.4,1818.2,3.69258]
[1743844828168,0.00824584,1818.4,1818.3,0.77024]
[1743844828367,0.00824584,1818.4,1818.3,2.16314]
[1743844831664,0.77844584,1818.4,1818.3,1.3929]
[1743844831866,0.00824584,1818.4,1818.3,2.16314]
[1743844836177,3.98624584,1818.4,1818.3,1.3929]
[1743844836376,5.37054584,1818.4,1818.3,1.3929]
[1743844838574,2.16274584,1818.4,1818.3,1.3929]
[1743844839178,5.37054584,1818.4,1818.3,1.3929]
[1743844840973,7.10034584,1818.4,1817.6,3.2078]
[1743844841178,0.77033,1818.1,1817.9,2.24148]
[1743844841379,3.526,1818.1,1818.0,2.99206]
[1743844843178,4.29526,1818.3,1818.1,0.77031]
[1743844843380,4.29526,1818.3,1818.2,0.6969]
[1743844843882,4.29526,1818.3,1818.2,2.168]
[1743844844581,7.50306,1818.3,1818.2,2.168]
[1743844845182,4.29526,1818.3,1818.2,2.168]
[1743844846382,4.29526,1818.3,1818.2,2.93828]
[1743844846679,3.525,1818.3,1818.2,2.93828]
[1743844847677,0.00824584,1818.4,1818.3,0.77024]
[1743844847883,0.00824584,1818.4,1818.3,3.03854]
[1743844852381,0.00824584,1818.4,1818.3,3.79858838]
[1743844855383,0.00824584,1818.4,1818.3,3.79956152]
[1743844855889,0.00824584,1818.4,1818.3,3.79949928]
[1743844857591,0.00824584,1818.4,1818.3,3.79935547]